Cogmind - Beta 17.1 @@@ ROGUE MODE // 2026.09.23 @ 07:13:20 Player: J1ang-5h1 Result: Destroyed by 0K-4BJ(R) with Subdweller Laser Performance ------------- Evolutions (0) 0 Regions Visited (2) 400 Robots Destroyed (42) 210 Value Destroyed (959) 959 Prototype IDs (0) 0 Alien Tech Used (0) 0 Bonus (0) 0 TOTAL SCORE: 1569 Bonus ------- None Cogmind --------- Core Integrity 0/250 Matter 145/300 Energy 99/100 System Corruption 0% Temperature Cool (6) Movement Treading (320) Ox2 Location -10/Subcaves Parts ------- > --- POWER (1) -------- Subdweller Power Source > --- PROPULSION (2) --- Light Treads Light Treads > --- UTILITY (2) ------ Huge Storage Unit > --- WEAPON (2) ------- Battle Cannon Battle Cannon > --- INVENTORY (25) --- Subdweller Power Source Spiked Treads Subdweller Monowheel Medium Storage Unit High-capacity Battery (250) Structural Scanner Subdweller Optics Subdweller Optics Light Armor Plating Scrap Shield Hacking Suite Hacking Suite Tractor Beam Subdweller Laser Subdweller Laser Subdweller Laser Assault Rifle Subdweller Machine Gun Makeshift Shrapnel Gun Grenade Launcher Mining Laser Scrap Shield Fragment (48) Scrap Shield Fragment (46) Peak State ------------ > --- POWER ------------ Subdweller Power Source > --- PROPULSION ------- Light Treads Light Treads > --- UTILITY ---------- Huge Storage Unit Improved Terrain Scanner > --- WEAPON ----------- Battle Cannon Battle Cannon > --- INVENTORY -------- Subdweller Power Source Spiked Treads Wheel Compact Wheel Subdweller Monowheel Medium Storage Unit High-capacity Battery Structural Scanner Subdweller Optics Subdweller Optics Light Armor Plating Scrap Shield Hacking Suite Hacking Suite Tractor Beam Subdweller Laser Subdweller Laser Subdweller Laser Assault Rifle Subdweller Machine Gun Makeshift Shrapnel Gun Grenade Launcher Mining Laser Scrap Shield Fragment [Rating: 16] Favorites ----------- Power Subdweller Power Source Engine Subdweller Power Source Propulsion Light Treads Treads Light Treads Leg Aluminum Leg Wheel Compact Wheel Utility Huge Storage Unit Device Seismic Detector Storage Huge Storage Unit Protection Light Armor Plating Weapon Assault Rifle Energy Gun EM Pulse Gun Ballistic Gun Assault Rifle Ballistic Cannon Battle Cannon Special Weapon Mining Laser Build | -11 -10 -10 ------- Run | Yrd Mat Sub Slots Evolved . | . . . Power . | . . . Propulsion . | . . . Utility . | . . . Weapon . | . . . Parts Attached 30 | 9 11 10 Power 6 | 2 3 1 Engine 6 | 2 3 1 Core . | . . . Reactor . | . . . Propulsion 6 | 3 3 . Treads 3 | 2 1 . Leg 1 | 1 . . Wheel 2 | . 2 . Hover . | . . . Flight . | . . . Utility 8 | 2 3 3 Device 3 | 1 . 2 Storage 3 | 1 2 . Processor . | . . . Hackware . | . . . Protection 2 | . 1 1 Artifact . | . . . Weapon 10 | 2 2 6 Energy Gun 2 | 1 1 . Energy Cannon . | . . . Ballistic Gun 2 | 1 1 . Ballistic Cannon 5 | . . 5 Launcher . | . . . Special Weapon 1 | . . 1 Impact Weapon . | . . . Slashing Weapon . | . . . Piercing Weapon . | . . . Special Melee Weapon . | . . . Unidentified Prototypes . | . . . Parts Lost 9 | . 3 6 Power 3 | . 2 1 Propulsion 1 | . . 1 Utility 3 | . 1 2 Weapon 2 | . . 2 Highest Loss Streak 3 | . 1 3 To Critical Strikes 1 | . . 1 Average Backups 16 | 5 9 21 Power . | . . . Propulsion 2 | 2 2 3 Utility 7 | . 4 9 Weapon 5 | 1 2 7 Tool/Special . | . . . Unused Backups 20 | 1 2 17 Power 2 | . 1 1 Propulsion 4 | 1 . 3 Utility 8 | . 1 7 Weapon 6 | . . 6 Tool/Special . | . . . Average Slot Usage (%) 98 | . 97 99 Engine 13 | . 13 13 Treads 25 | . 22 27 Wheel 2 | . 5 . Device 10 | . 12 9 Storage 14 | . 14 14 Protection 2 | . . 3 Ballistic Gun 9 | . 24 . Ballistic Cannon 16 | . . 25 Peak Build Rating 16 | 6 9 16 Average Rating 10 | 3 7 13 On Entrance 5 | . 6 9 Avg Prop Armor Cover (%) . | . . . Naked Turns . | . . . Heaviest Build 94 | 11 90 94 Greatest Support 40 | 40 40 40 Greatest Overweight (x) 2 | . 2 2 Average Overweight (x) 1 | . . 2 Largest Inventory Capacity 25 | 8 25 25 Average Capacity 19 | 6 12 25 Most Carried 25 | 8 17 25 Average Carried 17 | 5 9 23 Final Capacity 25 | 8 25 25 Final Carried 24 | 7 17 24 Class Distribution -------------------- 82% | Mutant 17% | Scavenger-Mutant Dominant Class ---------------- Mutant | -10/Materials Mutant | -10/Subcaves Resources | -11 -10 -10 ----------- Run | Yrd Mat Sub Matter Collected 1104 | 320 489 295 Remotely . | . . . Salvage Created 1270 | 148 929 193 Parts 88 | 9 62 17 Haulers Intercepted 2 | . 2 . Recyclers Shooed . | . . . Parts Field Recycled . | . . . Retrieved Matter . | . . . Parts Self-Destructed 18 | . . 18 Prevented . | . . . Parts Restored . | . . . Kills | -11 -10 -10 ------- Run | Yrd Mat Sub Combat Hostiles Destroyed 31 | . 21 10 Guns 21 | . 19 2 Cannons 8 | . . 8 AOE 2 | . 2 . Classes Destroyed 9 | 2 6 1 Worker 1 | . 1 . Tunneler 3 | 2 1 . Hauler 2 | . 2 . Recycler 2 | 1 1 . Operator 1 | . 1 . Watcher 2 | . 2 . Swarmer 10 | . 6 4 Grunt 15 | . 15 . Subdweller 6 | . . 6 Best Kill Streak 5 | 1 5 3 Combat Bots Only 3 | . 3 3 Max Kills in Single Turn 2 | 1 2 1 Gunslinging 1 | . 1 . Exploded 1 | . 1 . Melee . | . . . Uniques/NPCs Destroyed . | . . . Combat | -11 -10 -10 -------- Run | Yrd Mat Sub Hostile Shots Fired 149 | . 79 70 Missed 47 | . 25 22 Hits 102 | . 54 48 Projectile 102 | . 54 48 AOE 3 | . . 3 Critical Strikes 3 | . 1 2 Damage Taken 1510 | . 553 957 Core 269 | . 92 177 Absorbed by Shields . | . . . Regen/Repaired (Parts) 62 | . 62 . Core Remaining (%) 100 | 100 . . Volleys Fired 123 | 10 68 45 Largest 2 | 1 2 2 Hottest 100 | 20 80 100 Shots Fired 222 | 10 131 81 Gun 157 | 10 131 16 Cannon 56 | . . 56 Launcher . | . . . Special 9 | . . 9 Kinetic 195 | 10 113 72 Thermal 9 | . . 9 Explosive . | . . . Electromagnetic 18 | . 18 . Robot Hit Streak 10 | 4 6 10 Robot Miss Streak 4 | 1 3 4 Penetration Max . | . . . Secondary Targets 3 | . 2 1 Max Gunslinging Chain 1 | . 1 1 Shots Hit Robots 142 | 7 83 52 Core Hits 63 | 4 43 16 Critical Kills . | . . . Critical Parts Destroyed . | . . . Critical Strikes 1 | . . 1 Blast 1 | . . 1 Melee Attacks . | . . . Impact . | . . . Slashing . | . . . Piercing . | . . . Sneak Attacks . | . . . Combat Hostiles . | . . . Follow-up Attacks . | . . . Damage Inflicted 2141 | 91 1224 826 Guns 1382 | 91 1098 193 Cannons 633 | . . 633 Explosions 126 | . 126 . Melee . | . . . Ramming . | . . . Kinetic 1827 | 91 910 826 Thermal 126 | . 126 . Explosive . | . . . Electromagnetic 188 | . 188 . Impact . | . . . Slashing . | . . . Piercing . | . . . Highest Corruption . | . . . Average Corruption . | . . . Corruption Purged . | . . . Corruption Blocked . | . . . Overload Shots . | . . . Overflow Damage 22 | . 15 7 Projectiles 7 | . . 7 Explosions 15 | . 15 . Melee . | . . . Knockbacks 8 | . . 8 Impact . | . . . Kinetic 8 | . . 8 Secondary . | . . . Self-Inflicted Damage 26 | . 26 . Shots 1 | . 1 . Rammed . | . . . Targets Rammed . | . . . Kicked . | . . . Crushed . | . . . Highest Temperature 138 | . 138 . Average Temperature 62 | . 62 . Received Heat Transfer 318 | . 192 126 Siege Activations . | . . . Martial Activations . | . . . Shielding Activations . | . . . Robots Disrupted . | . . . Combat Hostiles . | . . . Robots Corrupted . | . . . Combat Hostiles . | . . . Parts Fried 2 | . 2 . Impact Corruptions . | . . . Robots Melted . | . . . Combat Hostiles . | . . . Parts Melted . | . . . Heat Transferred 100 | . 100 . Parts Sabotaged . | . . . Parts Stolen . | . . . Parts Stripped . | . . . Power Chain Reactions 2 | . 2 . Alert | -11 -10 -10 ------- Run | Yrd Mat Sub Maximum Alert Level 1 | . 1 . Low Security (%) 96 | 100 96 . Level 1 3 | . 3 . Level 2 . | . . . Level 3 . | . . . Level 4 . | . . . Level 5 . | . . . High Security . | . . . Max Security . | . . . Peak Influence 215 | 5 215 . Initial . | . . . Average 117 | 1 129 . Influence Increases 863 | 15 728 120 Destroy 0b10 Robot/C 500 | . 420 80 Destroy 0b10 Robot/NC 55 | 15 40 . Destroy Leader 118 | . 108 10 Successful Hack 18 | . 18 . Select Force Hacks 60 | . 60 . Disable Machine 15 | . 15 . Destroy Structure 7 | . 7 . Lose Combat Pursuer 90 | . 60 30 Influence Decreases 791 | 15 555 221 Entered New Map 84 | . . 84 Time Decay 648 | 15 526 107 Lost Part 59 | . 29 30 Squads Dispatched 7 | . 7 . Investigation 6 | . 6 . Extermination . | . . . Reinforcement 1 | . 1 . Assault . | . . . Garrison . | . . . Intercept . | . . . Searches Triggered . | . . . Construction Impeded . | . . . Haulers Reinforced . | . . . Active Scanning Responses . | . . . Cargo Convoy Interrupts . | . . . Stealth | -11 -10 -10 --------- Run | Yrd Mat Sub Distress Signals 1 | . 1 . Communications Jammed . | . . . Distress Signals . | . . . Times Spotted 42 | . 30 12 Peak Tracking Total 4 | . 4 3 Tactical Retreats 5 | . 4 1 Traps | -11 -10 -10 ------- Run | Yrd Mat Sub Traps Triggered 3 | . 3 . Indirectly . | . . . Trap Hack Attempts . | . . . Triggered . | . . . Disarmed . | . . . Reprogrammed . | . . . Reused . | . . . Traps Extracted . | . . . Installed . | . . . Triggered . | . . . Machines | -11 -10 -10 ---------- Run | Yrd Mat Sub Machines Disabled 1 | . 1 . Max in Single Turn 1 | . 1 . Machines Repaired . | . . . Machines Dismantled . | . . . Machines Sabotaged . | . . . Overloaded Fab Kills . | . . . Hacking | -11 -10 -10 --------- Run | Yrd Mat Sub Machines Accessed 12 | . 10 2 Terminals 7 | . 7 . Fabricators . | . . . Repair Stations 1 | . 1 . Recycling Units 2 | . 2 . Scanalyzers . | . . . Garrison Access . | . . . Total Hacks 35 | . 32 3 Successful 19 | . 16 3 Failed 15 | . 15 . Catastrophic 2 | . 2 . Database Lockouts 1 | . 1 . Manual 25 | . 25 . Terminals 26 | . 26 . Fabricators . | . . . Repair Stations 2 | . 2 . Recycling Units 4 | . 4 . Scanalyzers . | . . . Garrison Access . | . . . Terminal Hacks 7 | . 4 3 Record 1 | . . 1 Robot Analysis 3 | . 3 . Open Door 1 | . . 1 Locate Traps 1 | . 1 . Release Object 1 | . . 1 Fabricator Hacks . | . . . Repair Station Hacks 2 | . 2 . Scan Component 1 | . 1 . Repair 1 | . 1 . Recycling Unit Hacks 2 | . 2 . Report Inventory 2 | . 2 . Scanalyzer . | . . . Garrison Access Hacks . | . . . Unauthorized Hacks 8 | . 8 . Terminals 6 | . 6 . Botnet 2 | . 2 . Skim 4 | . 4 . Fabricators . | . . . Repair Stations . | . . . Recycling Units 2 | . 2 . Tunnel 2 | . 2 . Scanalyzers . | . . . Garrison Access . | . . . Data Cores Recovered . | . . . Used . | . . . Hacking Detections 9 | . 9 . Full Trace Events . | . . . Feedback Events . | . . . Feedback Blocked . | . . . Robot Schematics Acquired . | . . . Robots Built . | . . . Authchips . | . . . Time . | . . . Total Robot Build Rating . | . . . Part Schematics Acquired . | . . . Parts Built . | . . . Authchips . | . . . Time . | . . . Total Part Build Rating . | . . . Part Studies Acquired . | . . . Parts Repaired 1 | . 1 . Time 26 | . 26 . Parts Recycled . | . . . Recycled Matter . | . . . Retrieved Matter . | . . . Retrieved Components . | . . . Parts Scanalyzed . | . . . Part Schematics Acquired . | . . . Parts Damaged . | . . . Bothacking | -11 -10 -10 ------------ Run | Yrd Mat Sub Used RIF Installer . | . . . Robots Hacked . | . . . Non-combat . | . . . Combat . | . . . Robot Hacks Applied . | . . . Relay Couplers Released . | . . . Fabnet Peak Effective % . | . . . Robots Rewired . | . . . Allies Hacked . | . . . Hacks Repelled . | . . . Allies | -11 -10 -10 -------- Run | Yrd Mat Sub Total Allies . | . . . Largest Group . | . . . Highest-Rated Group . | . . . Highest-Rated Ally . | . . . Total Orders . | . . . Ally Attacks . | . . . Total Damage . | . . . Kills . | . . . Allies Corrupted . | . . . Allies Melted . | . . . Intel | -11 -10 -10 ------- Run | Yrd Mat Sub Active Infowar (turns) 3322 | 20 1437 1865 Terrain 822 | . . 822 Structural 1043 | . . 1043 Seismic 1457 | 20 1437 . Robot Analysis Total 3 | . 3 . Derelict Logs Recovered 1 | . . 1 Drone Launches . | . . . Drone Recoveries . | . . . Exploration | -11 -10 -10 ------------- Run | Yrd Mat Sub Turns Passed 4388 | 175 1577 2636 Spaces Moved 1676 | 94 805 777 Core 15 | 15 . . Treads 1423 | 68 600 755 Legs 11 | 11 . . Wheels 227 | . 205 22 Hover . | . . . Flight . | . . . Fastest Speed 50 | 50 130 130 Average Speed 226 | 137 152 314 Slowest Speed 320 | 160 160 320 Overloaded Moves . | . . . Propulsion Burnouts . | . . . Robots Hopped . | . . . Potential Cave-ins . | . . . Cave-ins Triggered . | . . . Exploration Rate (%) 51 | 3 98 54 Regions Visited 2 Branch Regions 1 Pre-discovered Areas 3 | . 2 1 Known Exits Taken . | . . . Unknown Exits Taken 2 | 1 1 . Scrap Searched . | . . . Spaces Dug . | . . . Terrain Destroyed 7 | . 6 1 Melee . | . . . Projectile 1 | . . 1 AOE 6 | . 6 . Terrain Rammed . | . . . Walls Destroyed . | . . . Machines Disabled . | . . . Actions | -11 -10 -10 --------- Run | Yrd Mat Sub Total 2022 | 129 1025 868 Wait 107 | . 100 7 Move 1674 | 93 804 777 Hop . | . . . Pick Up 54 | 13 26 15 Fast Attach 4 | 4 . . Attach 16 | 4 7 5 Detach . | . . . Swap 24 | 1 9 14 Drop 20 | 4 11 5 Fire 123 | 10 68 45 Melee . | . . . Ram . | . . . Kick . | . . . Crush . | . . . Escape Stasis . | . . . Rewire . | . . . Trap . | . . . Miscellaneous . | . . . Route ------- -11/Scrapyard -10/Materials (discovered 6 exits: [*Mat x3] / [*Min x2] / *Sub) -10/Subcaves (discovered 1 exit: [*Mat]) History --------- Turn | Location | Event 11 | -11/Scrapyard | Discovered new exit (range 16) 176 | -11/Scrapyard | Entered Materials 307 | -10/Materials | Build established: Mutant 538 | -10/Materials | Discovered new exit (range 6) 647 | -10/Materials | Discovered new exit (range 10) 676 | -10/Materials | Derelicts attacked the area 909 | -10/Materials | Discovered new exit (range 16) 979 | -10/Materials | Build established: Scavenger-Mutant 1104 | -10/Materials | Discovered new exit (range 15) 1314 | -10/Materials | Discovered new exit (range 9) 1533 | -10/Materials | Repaired Assault Rifle? 1578 | -10/Materials | Discovered new exit (range 13) 1597 | -10/Materials | Central database locked down 1753 | -10/Materials | Entered Subcaves 1754 | -10/Subcaves | Approached by a straggling Scientist 1774 | -10/Subcaves | Build established: Mutant 1799 | -10/Subcaves | Core integrity fell below 50% 2152 | -10/Subcaves | Lost 3 parts (1p1u1w) 2434 | -10/Subcaves | Discovered new exit (range 11) 2460 | -10/Subcaves | Shifting Twisted Machinery released Spk. Treads 2470 | -10/Subcaves | Shifting Twisted Machinery released Sub. Laser 2563 | -10/Subcaves | Core integrity fell below 20% 2794 | -10/Subcaves | Shifting Twisted Machinery released Mak. Shrapnel Gun 2794 | -10/Subcaves | Shifting Twisted Machinery released Battle Cannon 3267 | -10/Subcaves | Learned location of Zion (-6) 3419 | -10/Subcaves | A swath of the cavern ceiling suddenly collapsed 3691 | -10/Subcaves | A swath of the cavern ceiling suddenly collapsed 4389 | -10/Subcaves | Destroyed by 0K-4BJ(R) with Subdweller Laser Last Messages --------------- collapses. 04205_ S-10 Pest destroyed. 04223_ Destroyed Flight Unit. 04223_ S-10 Pest knocked back. 04226_ S-10 Pest destroyed. 04229_ Acquired 3 matter. 04231_ Subatomizers dissect the Flight Unit. 04232_ Acquired 3 matter. 04244_ Flight Unit fries itself beyond repair. 04248_ Acquired 3 matter. 04251_ Acquired 5 matter. 04280_ Acquired 2 matter. 04289_ Acquired 1 matter. 04293_ Dropped Com. Wheel. 04293_ Dropped Wheel. 04297_ Subatomizers dissect the Com. Wheel. 04319_ Acquired Scrap Shield Fragment. 04322_ Subatomizers dissect the Com. Wheel. 04367_ Imp. Terrain Scanner destroyed. 04382_ 0K-4BJ(R) knocked back. Map ----- +----------------------------------------------------+ | ???????????????????????????##### "##""" ## ####? | | ????????????????????????????#?## ## ### ##? | | ????????????????????????????#?## ## ### ### | | ???#??????????????????????????######## ## ##? | | ????????????????????????????########## ##? | | ????#?????????????????????????????#### ##? | | ???????????????????????######???????### ##? | | ??????????????????????################## #######? | | ??????????????????????### ############ #######? | | ??????????????????????## # #### ###??? | | ?????????????????####### ## ### ##??# | | ??????"####?????######## ## ### ###??? | | ??????"####?????### #### ##### ###??? | | ?????? ????### #### ##### ###??? | | ????????? ???### # # #### #####? | | ?????????## ??## ### ####? | | ?????????### "### ### | | ?????????### ### ## # ## ##? | | ?????????### #% ############ ## ##"##? | | ?????????## "& " ############ ###### | | ?????????##"""" "" #### ### ##???? | | ?????????##"""### "" = ####??? | | ?????????##" #### "" % % < ####???? | | ?????????##""### # # R ### #####??? | | ?????????"""?## ## ### #### " ## ##?? | | ?????????????## ########@ #### "# ### #?? | | ?????????????############ #### % ### %### #?? | | ????????????######??????# ##"" """# " # #??? | | ????????????????????????# ## """""## " % #??? | | ???????????????????#??? ## ##" ## " ##??? | | ??????????????????????? ####""###" ## ##???? | | ??????????????????????? #########""## #????? | | ??????????????????????# #??????# ### ##???#? | | ??????????????????????#####???#??# # " ##?????? | | ??????????????????#???#####????#?# "" ##??????? | | ???????????????????????#?????#???# ## "##???????? | | ?????????????????????????????#??## ####????????? | | ???????????????????????#?????# ## ##??######??? | | ?????????????????????????????# ####""""##?? | | ?????????????????????????????#" #?#""""#?? | | ????????????????????????????# "" "###" #?? | | ????????????????????????????# "" # #" # #?? | | ????????????????????????????## """###""" "" ##? | | ?????????????????????????????##"""??#"""""## #? | | ??????????????????????????????##""??# " ### #? | | ??????????????????????????????? """" ###" #? | | ?????????????????????????????????? """ #?#" #? | | ??????????????????????????????????##""" ###" #? | | ????????????????????#####??????#### """" #? | | ????????????????????# #?????# "" " ## #? | +----------------------------------------------------+ Best States ------------- Heat Dissipation 25 Energy Generation 15 Energy Capacity 200 Matter Stores 300 Matter Capacity 300 Sight Range 16 Terrain Scan Range 16 Terrain Scan Density 10 Armor Coverage 150 Evasion (%) 50 Recoil Reduction 2 Item Schematics ----------------- None Robot Schematics ------------------ None Fabricated ------------ Nothing Repaired ---------- Assault Rifle | 38% | -10/Materials Studied --------- None Alien Tech Used ----------------- None Achievements -------------- None Challenges ------------ None Game ------ Seed CompanionTrapStrikerail Manual? 0 Play Time 00:30:17 Cumulative 452.2 hours Start 2026.09.23 @ 06:39:35 End 2026.09.23 @ 07:13:20 Sessions 1 Manual Loads 0 Difficulty Rogue Special Mode None Game No. 324 Rogue 314 Adventurer 0 Explorer 10 Win Type - Total 5 Types 5/0/0/0/0/0/0/0/0/0 Lore% 83 Gallery% 68 Achievement% 49 Wizard Run 0 Options --------- Layout 2 ASCII 0 Keyboard 0 Movement Arrows Keybinds 1 Fullscreen 1 Font 24/Smallcaps Map View 50x44 Zoom Use 0% Tactical HUD 1 Map Filters NONE Filters NONE Steam 1 RUN: d3cd8da6-1fef-4717-865f-30ed08e39bfd